[Event "Titled Tuesday Blitz November 01 Late 2022"]
[White "Gireman, Ja"]
[Black "Firouzja, Alireza"]
[WhiteFideId "5043794"]
[BlackFideId "12573981"]
[WhiteElo "2153"]
[BlackElo "2903"]
[Result "0-1"]
[Round "01"]
[TimeControl "180+1"]
[Date "2022.11.01"]
[WhiteClock "0:01:35"]
[BlackClock "0:00:23"]

1. e4 {[%clk 0:02:59]}  e5 {[%clk 0:02:36]} 2. Nf3 {[%clk 0:02:59]}  Nc6 {[%clk 0:01:34]} 3. Bc4 {[%clk 0:02:59]}  Nf6 {[%clk 0:01:15]} 4. d4 {[%clk 0:02:51]}  exd4 {[%clk 0:01:04]} 5. O-O {[%clk 0:02:51]}  Nxe4 {[%clk 0:01:04]} 6. Re1 {[%clk 0:02:51]}  d5 {[%clk 0:01:04]} 7. Bxd5 {[%clk 0:02:51]}  Qxd5 {[%clk 0:01:05]} 8. Nc3 {[%clk 0:02:47]}  Qf5 {[%clk 0:01:05]} 9. Nxe4 {[%clk 0:02:32]}  Be6 {[%clk 0:01:01]} 10. Nxd4 {[%clk 0:02:19]}  Nxd4 {[%clk 0:01:01]} 11. Qxd4 {[%clk 0:02:20]}  Be7 {[%clk 0:00:58]} 12. Qa4+ {[%clk 0:01:55]}  b5 {[%clk 0:00:39]} 13. Qa5 {[%clk 0:01:53]}  Rc8 {[%clk 0:00:24]} 14. Qa4 {[%clk 0:01:35]}  bxa4 {[%clk 0:00:23]} 0-1


[Site "https://www.chess.com"]

[Event "Titled Tuesday Blitz November 01 Late 2022"]
[White "Girsh, Daniel"]
[Black "Kravtsiv, Martyn"]
[WhiteFideId "30949190"]
[BlackFideId "14113147"]
[WhiteElo "2075"]
[BlackElo "2694"]
[Result "0-1"]
[Round "01"]
[TimeControl "180+1"]
[Date "2022.11.02"]
[WhiteClock "0:00:05"]
[BlackClock "0:00:10"]

1. e4 {[%clk 0:03:00]}  e5 {[%clk 0:02:59]} 2. Nf3 {[%clk 0:03:01]}  Nc6 {[%clk 0:02:58]} 3. Bb5 {[%clk 0:03:01]}  a6 {[%clk 0:02:58]} 4. Ba4 {[%clk 0:03:02]}  Nf6 {[%clk 0:02:58]} 5. O-O {[%clk 0:03:03]}  Be7 {[%clk 0:02:58]} 6. Re1 {[%clk 0:03:03]}  b5 {[%clk 0:02:58]} 7. Bb3 {[%clk 0:03:03]}  O-O {[%clk 0:02:57]} 8. h3 {[%clk 0:03:02]}  Bb7 {[%clk 0:02:53]} 9. d3 {[%clk 0:03:03]}  d6 {[%clk 0:02:53]} 10. Nc3 {[%clk 0:03:03]}  Na5 {[%clk 0:02:52]} 11. Bd5 {[%clk 0:02:59]}  Nxd5 {[%clk 0:02:44]} 12. Nxd5 {[%clk 0:02:55]}  f5 {[%clk 0:02:33]} 13. Bd2 {[%clk 0:02:50]}  Bxd5 {[%clk 0:02:23]} 14. exd5 {[%clk 0:02:47]}  Nb7 {[%clk 0:02:22]} 15. c4 {[%clk 0:02:47]}  Qd7 {[%clk 0:02:16]} 16. b4 {[%clk 0:02:44]}  Bf6 {[%clk 0:02:05]} 17. Bc3 {[%clk 0:02:40]}  h6 {[%clk 0:01:45]} 18. a4 {[%clk 0:02:39]}  Kh7 {[%clk 0:01:42]} 19. Ra2 {[%clk 0:02:33]}  c6 {[%clk 0:01:41]} 20. Qa1 {[%clk 0:02:15]}  bxc4 {[%clk 0:01:30]} 21. dxc4 {[%clk 0:02:13]}  Rfc8 {[%clk 0:01:26]} 22. Rb1 {[%clk 0:01:48]}  cxd5 {[%clk 0:01:21]} 23. cxd5 {[%clk 0:01:48]}  Qf7 {[%clk 0:01:17]} 24. Rd2 {[%clk 0:01:39]}  Rc4 {[%clk 0:01:06]} 25. Rbd1 {[%clk 0:01:17]}  Rac8 {[%clk 0:01:04]} 26. Bb2 {[%clk 0:01:15]}  Rxb4 {[%clk 0:01:03]} 27. Ba3 {[%clk 0:01:11]}  Rxa4 {[%clk 0:01:02]} 28. Qb2 {[%clk 0:01:12]}  Na5 {[%clk 0:01:00]} 29. Bxd6 {[%clk 0:00:59]}  e4 {[%clk 0:00:27]} 30. Ne5 {[%clk 0:00:59]}  Bxe5 {[%clk 0:00:23]} 31. Bxe5 {[%clk 0:00:42]}  Nc4 {[%clk 0:00:23]} 32. Qb3 {[%clk 0:00:42]}  Ra3 {[%clk 0:00:23]} 33. Qb4 {[%clk 0:00:43]}  a5 {[%clk 0:00:23]} 34. Qb5 {[%clk 0:00:32]}  Nxe5 {[%clk 0:00:22]} 35. d6 {[%clk 0:00:32]}  Nd7 {[%clk 0:00:21]} 36. Rd5 {[%clk 0:00:30]}  Rb8 {[%clk 0:00:15]} 37. Qc6 {[%clk 0:00:26]}  Rab3 {[%clk 0:00:14]} 38. Kh2 {[%clk 0:00:21]}  R3b6 {[%clk 0:00:13]} 39. Qc7 {[%clk 0:00:20]}  R8b7 {[%clk 0:00:13]} 40. Qc8 {[%clk 0:00:20]}  a4 {[%clk 0:00:12]} 41. Ra5 {[%clk 0:00:19]}  Qb3 {[%clk 0:00:10]} 42. Rdd5 {[%clk 0:00:18]}  e3 {[%clk 0:00:10]} 43. fxe3 {[%clk 0:00:16]}  Qxe3 {[%clk 0:00:10]} 44. Rxf5 {[%clk 0:00:16]}  Rb2 {[%clk 0:00:10]} 45. Rae5 {[%clk 0:00:09]}  Rxg2+ {[%clk 0:00:09]} 46. Kxg2 {[%clk 0:00:08]}  Rb2+ {[%clk 0:00:09]} 47. Kh1 {[%clk 0:00:05]}  Qxh3+ {[%clk 0:00:09]} 48. Kg1 {[%clk 0:00:05]}  Qh2+ {[%clk 0:00:10]} 49. Kf1 {[%clk 0:00:05]}  Qh1# {[%clk 0:00:10]} 0-1


[Site "https://www.chess.com"]

[Event "Titled Tuesday Blitz November 01 Late 2022"]
[White "Goltsev, Dmitry"]
[Black "Krzywda, Andrzej"]
[WhiteFideId "24176710"]
[BlackFideId "1114565"]
[WhiteElo "2257"]
[BlackElo "2149"]
[Result "1-0"]
[Round "01"]
[TimeControl "180+1"]
[Date "2022.11.02"]
[WhiteClock "0:01:04"]
[BlackClock "0:00:02"]

1. e4 {[%clk 0:02:58]}  c5 {[%clk 0:02:58]} 2. Nf3 {[%clk 0:02:58]}  Nc6 {[%clk 0:02:56]} 3. d4 {[%clk 0:02:59]}  cxd4 {[%clk 0:02:57]} 4. Nxd4 {[%clk 0:03:00]}  g6 {[%clk 0:02:58]} 5. Nc3 {[%clk 0:03:00]}  Bg7 {[%clk 0:02:58]} 6. Be3 {[%clk 0:03:00]}  Nf6 {[%clk 0:02:58]} 7. Be2 {[%clk 0:03:00]}  O-O {[%clk 0:02:58]} 8. O-O {[%clk 0:03:00]}  d5 {[%clk 0:02:58]} 9. exd5 {[%clk 0:03:01]}  Nb4 {[%clk 0:02:58]} 10. Ndb5 {[%clk 0:02:29]}  a6 {[%clk 0:02:40]} 11. Na3 {[%clk 0:02:22]}  Nbxd5 {[%clk 0:02:37]} 12. Nxd5 {[%clk 0:02:22]}  Nxd5 {[%clk 0:02:38]} 13. Bd4 {[%clk 0:02:22]}  e5 {[%clk 0:02:17]} 14. Bc5 {[%clk 0:02:21]}  Re8 {[%clk 0:02:12]} 15. Nc4 {[%clk 0:02:21]}  Nf4 {[%clk 0:02:01]} 16. Nb6 {[%clk 0:02:09]}  Qg5 {[%clk 0:01:53]} 17. g3 {[%clk 0:02:02]}  Bh3 {[%clk 0:01:09]} 18. Nxa8 {[%clk 0:01:56]}  Rxa8 {[%clk 0:01:04]} 19. Be3 {[%clk 0:01:51]}  Nxe2+ {[%clk 0:00:46]} 20. Qxe2 {[%clk 0:01:52]}  Qf5 {[%clk 0:00:41]} 21. Rfd1 {[%clk 0:01:39]}  Bg4 {[%clk 0:00:38]} 22. Qd3 {[%clk 0:01:37]}  Qh5 {[%clk 0:00:32]} 23. Rd2 {[%clk 0:01:33]}  Bf3 {[%clk 0:00:26]} 24. h4 {[%clk 0:01:26]}  e4 {[%clk 0:00:23]} 25. Qd7 {[%clk 0:01:22]}  Bxb2 {[%clk 0:00:19]} 26. Rb1 {[%clk 0:01:22]}  Bf6 {[%clk 0:00:18]} 27. Rxb7 {[%clk 0:01:22]}  Rf8 {[%clk 0:00:18]} 28. Rd5 {[%clk 0:01:16]}  Qg4 {[%clk 0:00:13]} 29. Qxg4 {[%clk 0:01:15]}  Bxg4 {[%clk 0:00:14]} 30. Rd6 {[%clk 0:01:16]}  Be6 {[%clk 0:00:14]} 31. Rxa6 {[%clk 0:01:13]}  Rc8 {[%clk 0:00:12]} 32. Bh6 {[%clk 0:01:09]}  Be5 {[%clk 0:00:04]} 33. Rba7 {[%clk 0:01:06]}  e3 {[%clk 0:00:03]} 34. fxe3 {[%clk 0:01:03]}  Bxg3 {[%clk 0:00:03]} 35. Ra8 {[%clk 0:01:03]}  Bxh4 {[%clk 0:00:01]} 36. Rxc8+ {[%clk 0:01:03]}  Bxc8 {[%clk 0:00:02]} 37. Ra8 {[%clk 0:01:04]} 1-0


[Site "https://www.chess.com"]

[Event "Titled Tuesday Blitz November 01 Late 2022"]
[White "Hnydiuk, Aleksander"]
[Black "Pap, Gyula"]
[WhiteFideId "1109057"]
[BlackFideId "725323"]
[WhiteElo "2374"]
[BlackElo "2519"]
[Result "0-1"]
[Round "01"]
[TimeControl "180+1"]
[Date "2022.11.01"]
[WhiteClock "0:00:02"]
[BlackClock "0:00:13"]

1. d4 {[%clk 0:02:59]}  e6 {[%clk 0:03:00]} 2. g3 {[%clk 0:02:56]}  c5 {[%clk 0:02:58]} 3. Nf3 {[%clk 0:02:56]}  b6 {[%clk 0:02:57]} 4. d5 {[%clk 0:02:25]}  exd5 {[%clk 0:02:55]} 5. Qxd5 {[%clk 0:02:24]}  Nc6 {[%clk 0:02:55]} 6. c4 {[%clk 0:02:20]}  Nf6 {[%clk 0:02:55]} 7. Qd1 {[%clk 0:02:19]}  Bb7 {[%clk 0:02:54]} 8. Bg2 {[%clk 0:02:18]}  Nd4 {[%clk 0:02:49]} 9. O-O {[%clk 0:02:11]}  Nxf3+ {[%clk 0:02:48]} 10. Bxf3 {[%clk 0:02:11]}  Bxf3 {[%clk 0:02:47]} 11. exf3 {[%clk 0:02:12]}  d5 {[%clk 0:02:46]} 12. Bg5 {[%clk 0:02:02]}  dxc4 {[%clk 0:02:19]} 13. Qe2+ {[%clk 0:02:02]}  Be7 {[%clk 0:02:15]} 14. Bxf6 {[%clk 0:02:01]}  gxf6 {[%clk 0:02:16]} 15. Rd1 {[%clk 0:01:53]}  Qc8 {[%clk 0:02:13]} 16. Re1 {[%clk 0:01:39]}  Qb7 {[%clk 0:02:08]} 17. Nc3 {[%clk 0:01:29]}  Kf8 {[%clk 0:02:08]} 18. Rad1 {[%clk 0:01:25]}  b5 {[%clk 0:01:57]} 19. Nd5 {[%clk 0:01:18]}  Bd8 {[%clk 0:01:57]} 20. Qe4 {[%clk 0:00:52]}  h5 {[%clk 0:01:52]} 21. Qf5 {[%clk 0:00:48]}  Kg7 {[%clk 0:01:47]} 22. Nf4 {[%clk 0:00:46]}  Ba5 {[%clk 0:01:41]} 23. Rd7 {[%clk 0:00:23]}  Qxd7 {[%clk 0:01:35]} 24. Qxd7 {[%clk 0:00:24]}  Bxe1 {[%clk 0:01:36]} 25. Ne6+ {[%clk 0:00:22]}  Kg6 {[%clk 0:01:36]} 26. Nf4+ {[%clk 0:00:22]}  Kg7 {[%clk 0:01:37]} 27. Qxb5 {[%clk 0:00:19]}  c3 {[%clk 0:01:19]} 28. bxc3 {[%clk 0:00:18]}  Bxc3 {[%clk 0:01:20]} 29. Qxc5 {[%clk 0:00:18]}  Be5 {[%clk 0:01:21]} 30. Nd3 {[%clk 0:00:15]}  Ba1 {[%clk 0:00:52]} 31. Qf5 {[%clk 0:00:11]}  Rae8 {[%clk 0:00:47]} 32. h4 {[%clk 0:00:11]}  Re2 {[%clk 0:00:43]} 33. Kf1 {[%clk 0:00:09]}  Re6 {[%clk 0:00:33]} 34. a4 {[%clk 0:00:09]}  Bc3 {[%clk 0:00:28]} 35. Kg2 {[%clk 0:00:08]}  Bd4 {[%clk 0:00:26]} 36. Qd5 {[%clk 0:00:07]}  Bc3 {[%clk 0:00:26]} 37. Nf4 {[%clk 0:00:07]}  Re5 {[%clk 0:00:26]} 38. Qc6 {[%clk 0:00:06]}  Bd4 {[%clk 0:00:25]} 39. Qc7 {[%clk 0:00:06]}  Bb6 {[%clk 0:00:24]} 40. Qd7 {[%clk 0:00:06]}  Rd8 {[%clk 0:00:22]} 41. Qb7 {[%clk 0:00:06]}  Rd2 {[%clk 0:00:21]} 42. Nh3 {[%clk 0:00:04]}  Ra5 {[%clk 0:00:16]} 43. Qc6 {[%clk 0:00:03]}  Rc5 {[%clk 0:00:15]} 44. Qb7 {[%clk 0:00:03]}  Rc4 {[%clk 0:00:14]} 45. f4 {[%clk 0:00:03]}  Rxa4 {[%clk 0:00:13]} 46. Qc6 {[%clk 0:00:03]}  Rad4 {[%clk 0:00:13]} 47. Qf3 {[%clk 0:00:02]}  Kg6 {[%clk 0:00:12]} 48. f5+ {[%clk 0:00:02]}  Kg7 {[%clk 0:00:13]} 49. Qxh5 {[%clk 0:00:02]}  a5 {[%clk 0:00:13]} 0-1


[Site "https://www.chess.com"]

[Event "Titled Tuesday Blitz November 01 Late 2022"]
[White "Ibarra Jerez, Jose Carlos"]
[Black "Soto Vega, Jorge"]
[WhiteFideId "2226332"]
[BlackFideId "3800580"]
[WhiteElo "2627"]
[BlackElo "2263"]
[Result "1-0"]
[Round "01"]
[TimeControl "180+1"]
[Date "2022.11.01"]
[WhiteClock "0:01:01"]
[BlackClock "0:00:57"]

1. e4 {[%clk 0:02:59]}  d5 {[%clk 0:02:59]} 2. exd5 {[%clk 0:02:56]}  Qxd5 {[%clk 0:02:59]} 3. Nc3 {[%clk 0:02:56]}  Qa5 {[%clk 0:02:59]} 4. d4 {[%clk 0:02:56]}  c6 {[%clk 0:02:59]} 5. Bd2 {[%clk 0:02:56]}  Qb6 {[%clk 0:02:59]} 6. Nf3 {[%clk 0:02:55]}  Bg4 {[%clk 0:02:57]} 7. Bc4 {[%clk 0:02:54]}  e6 {[%clk 0:02:57]} 8. h3 {[%clk 0:02:52]}  Bxf3 {[%clk 0:02:56]} 9. Qxf3 {[%clk 0:02:52]}  Qxd4 {[%clk 0:02:57]} 10. Bb3 {[%clk 0:02:50]}  Nd7 {[%clk 0:02:57]} 11. O-O-O {[%clk 0:02:49]}  Nc5 {[%clk 0:02:56]} 12. Be3 {[%clk 0:02:28]}  Nxb3+ {[%clk 0:02:48]} 13. axb3 {[%clk 0:02:26]}  Qe5 {[%clk 0:02:48]} 14. Rhe1 {[%clk 0:02:23]}  Nf6 {[%clk 0:02:45]} 15. Kb1 {[%clk 0:02:11]}  Qa5 {[%clk 0:02:41]} 16. Bd4 {[%clk 0:01:39]}  Be7 {[%clk 0:02:36]} 17. Re5 {[%clk 0:01:32]}  Qc7 {[%clk 0:01:22]} 18. Rg5 {[%clk 0:01:26]}  Kf8 {[%clk 0:01:07]} 19. Be5 {[%clk 0:01:21]}  Qc8 {[%clk 0:01:06]} 20. Rxg7 {[%clk 0:01:13]}  Kxg7 {[%clk 0:01:02]} 21. Ne4 {[%clk 0:01:14]}  Kf8 {[%clk 0:00:57]} 22. Nxf6 {[%clk 0:01:01]} 1-0


[Site "https://www.chess.com"]

[Event "Titled Tuesday Blitz November 01 Late 2022"]
[White "Jaferian, Koosha"]
[Black "Qashashvili, Alexandre"]
[WhiteFideId "12507440"]
[BlackFideId "13600842"]
[WhiteElo "2127"]
[BlackElo "2405"]
[Result "1-0"]
[Round "01"]
[TimeControl "180+1"]
[Date "2022.11.02"]
[WhiteClock "0:00:37"]
[BlackClock "0:00:08"]

1. Nf3 {[%clk 0:03:00]}  c6 {[%clk 0:02:44]} 2. b3 {[%clk 0:03:01]}  d5 {[%clk 0:02:44]} 3. Bb2 {[%clk 0:03:01]}  Nf6 {[%clk 0:02:43]} 4. g3 {[%clk 0:03:01]}  Bf5 {[%clk 0:02:42]} 5. Bg2 {[%clk 0:03:02]}  Qc8 {[%clk 0:02:41]} 6. d3 {[%clk 0:03:01]}  Bh3 {[%clk 0:02:40]} 7. Bxh3 {[%clk 0:03:00]}  Qxh3 {[%clk 0:02:38]} 8. c4 {[%clk 0:02:59]}  Ng4 {[%clk 0:02:38]} 9. cxd5 {[%clk 0:02:54]}  cxd5 {[%clk 0:02:35]} 10. Nc3 {[%clk 0:02:55]}  e6 {[%clk 0:02:34]} 11. Nb5 {[%clk 0:02:50]}  Bb4+ {[%clk 0:02:33]} 12. Bc3 {[%clk 0:02:46]}  Bxc3+ {[%clk 0:02:32]} 13. Nxc3 {[%clk 0:02:47]}  Nc6 {[%clk 0:02:29]} 14. Qd2 {[%clk 0:02:43]}  Qg2 {[%clk 0:02:26]} 15. Rf1 {[%clk 0:02:43]}  Nxh2 {[%clk 0:02:24]} 16. Nxh2 {[%clk 0:02:44]}  Qxh2 {[%clk 0:02:25]} 17. Qg5 {[%clk 0:02:41]}  O-O {[%clk 0:02:13]} 18. Kd2 {[%clk 0:02:22]}  Qh6 {[%clk 0:02:10]} 19. Qxh6 {[%clk 0:02:22]}  gxh6 {[%clk 0:02:11]} 20. Rh1 {[%clk 0:02:22]}  Kg7 {[%clk 0:02:11]} 21. Rh5 {[%clk 0:02:21]}  f5 {[%clk 0:02:08]} 22. Rah1 {[%clk 0:02:18]}  Rf6 {[%clk 0:02:08]} 23. Na4 {[%clk 0:02:08]}  b6 {[%clk 0:02:06]} 24. Rc1 {[%clk 0:02:07]}  e5 {[%clk 0:02:03]} 25. Nc3 {[%clk 0:01:55]}  Rd8 {[%clk 0:02:01]} 26. Rhh1 {[%clk 0:01:37]}  e4 {[%clk 0:02:00]} 27. Rh4 {[%clk 0:01:18]}  Nb4 {[%clk 0:01:39]} 28. a3 {[%clk 0:01:17]}  d4 {[%clk 0:01:34]} 29. axb4 {[%clk 0:01:15]}  dxc3+ {[%clk 0:01:32]} 30. Rxc3 {[%clk 0:01:16]}  exd3 {[%clk 0:01:32]} 31. Rxd3 {[%clk 0:01:17]}  Rxd3+ {[%clk 0:01:31]} 32. Kxd3 {[%clk 0:01:18]}  Kf7 {[%clk 0:01:30]} 33. Rc4 {[%clk 0:01:15]}  Rd6+ {[%clk 0:01:29]} 34. Ke3 {[%clk 0:01:13]}  Re6+ {[%clk 0:01:28]} 35. Kf3 {[%clk 0:01:11]}  Kg6 {[%clk 0:01:25]} 36. e3 {[%clk 0:01:00]}  h5 {[%clk 0:01:23]} 37. b5 {[%clk 0:00:56]}  Re5 {[%clk 0:01:22]} 38. Rb4 {[%clk 0:00:55]}  Rc5 {[%clk 0:01:19]} 39. Kf4 {[%clk 0:00:54]}  Kf6 {[%clk 0:01:19]} 40. f3 {[%clk 0:00:54]}  h6 {[%clk 0:01:17]} 41. e4 {[%clk 0:00:55]}  fxe4 {[%clk 0:01:13]} 42. fxe4 {[%clk 0:00:56]}  Ke6 {[%clk 0:01:11]} 43. Ra4 {[%clk 0:00:49]}  Rxb5 {[%clk 0:01:10]} 44. Rxa7 {[%clk 0:00:50]}  Rxb3 {[%clk 0:01:10]} 45. Rh7 {[%clk 0:00:51]}  Rb5 {[%clk 0:01:04]} 46. Rxh6+ {[%clk 0:00:51]}  Kf7 {[%clk 0:01:04]} 47. e5 {[%clk 0:00:52]}  Rb4+ {[%clk 0:01:03]} 48. Kf5 {[%clk 0:00:51]}  Rg4 {[%clk 0:01:03]} 49. Rxh5 {[%clk 0:00:49]}  Rxg3 {[%clk 0:01:02]} 50. Rh7+ {[%clk 0:00:49]}  Ke8 {[%clk 0:01:02]} 51. Rb7 {[%clk 0:00:46]}  Rh3 {[%clk 0:00:43]} 52. Rxb6 {[%clk 0:00:44]}  Rh5+ {[%clk 0:00:43]} 53. Ke4 {[%clk 0:00:41]}  Rh1 {[%clk 0:00:35]} 54. Kd5 {[%clk 0:00:40]}  Rh2 {[%clk 0:00:13]} 55. Rb8+ {[%clk 0:00:34]}  Ke7 {[%clk 0:00:13]} 56. Rb7+ {[%clk 0:00:34]}  Ke8 {[%clk 0:00:13]} 57. Kd6 {[%clk 0:00:35]}  Ra2 {[%clk 0:00:08]} 58. Rb8+ {[%clk 0:00:34]}  Kf7 {[%clk 0:00:08]} 59. e6+ {[%clk 0:00:34]}  Kg7 {[%clk 0:00:08]} 60. e7 {[%clk 0:00:33]}  Rd2+ {[%clk 0:00:07]} 61. Kc5 {[%clk 0:00:33]}  Rc2+ {[%clk 0:00:07]} 62. Kd4 {[%clk 0:00:34]}  Re2 {[%clk 0:00:05]} 63. e8=Q {[%clk 0:00:34]}  Re7 {[%clk 0:00:06]} 64. Qxe7+ {[%clk 0:00:34]}  Kg6 {[%clk 0:00:07]} 65. Rg8+ {[%clk 0:00:34]}  Kf5 {[%clk 0:00:06]} 66. Rg5+ {[%clk 0:00:33]}  Kf4 {[%clk 0:00:06]} 67. Qe5+ {[%clk 0:00:34]}  Kf3 {[%clk 0:00:06]} 68. Rg3+ {[%clk 0:00:35]}  Kf2 {[%clk 0:00:07]} 69. Qe3+ {[%clk 0:00:36]}  Kf1 {[%clk 0:00:08]} 70. Rg1# {[%clk 0:00:37]} 1-0


[Site "https://www.chess.com"]

[Event "Titled Tuesday Blitz November 01 Late 2022"]
[White "Jaracz, Pawel"]
[Black "Rosenberg, Evan S"]
[WhiteFideId "1102222"]
[BlackFideId "2019299"]
[WhiteElo "2459"]
[BlackElo "2378"]
[Result "1/2-1/2"]
[Round "01"]
[TimeControl "180+1"]
[Date "2022.11.02"]
[WhiteClock "0:00:15"]
[BlackClock "0:00:11"]

1. d4 {[%clk 0:02:58]}  d5 {[%clk 0:02:59]} 2. c4 {[%clk 0:02:58]}  e6 {[%clk 0:02:59]} 3. Nc3 {[%clk 0:02:57]}  c5 {[%clk 0:02:59]} 4. cxd5 {[%clk 0:02:56]}  cxd4 {[%clk 0:03:00]} 5. Qxd4 {[%clk 0:02:55]}  Nc6 {[%clk 0:02:58]} 6. Qa4 {[%clk 0:02:51]}  exd5 {[%clk 0:02:55]} 7. e3 {[%clk 0:02:51]}  Nf6 {[%clk 0:02:51]} 8. Bb5 {[%clk 0:02:50]}  Bd7 {[%clk 0:02:52]} 9. Nge2 {[%clk 0:02:49]}  Bc5 {[%clk 0:02:45]} 10. O-O {[%clk 0:02:48]}  O-O {[%clk 0:02:46]} 11. Rd1 {[%clk 0:02:39]}  a6 {[%clk 0:02:32]} 12. Bxc6 {[%clk 0:02:39]}  Bxc6 {[%clk 0:02:33]} 13. Qh4 {[%clk 0:02:38]}  Ne4 {[%clk 0:02:28]} 14. Qxd8 {[%clk 0:02:30]}  Raxd8 {[%clk 0:02:18]} 15. Bd2 {[%clk 0:02:15]}  Rfe8 {[%clk 0:02:07]} 16. Be1 {[%clk 0:02:14]}  f5 {[%clk 0:01:55]} 17. Rac1 {[%clk 0:02:13]}  Ba7 {[%clk 0:01:50]} 18. Nd4 {[%clk 0:02:11]}  Nxc3 {[%clk 0:01:20]} 19. Bxc3 {[%clk 0:02:10]}  Bxd4 {[%clk 0:01:08]} 20. Rxd4 {[%clk 0:02:06]}  Re4 {[%clk 0:00:59]} 21. Rd2 {[%clk 0:01:57]}  g5 {[%clk 0:00:54]} 22. Bd4 {[%clk 0:01:55]}  Kf7 {[%clk 0:00:49]} 23. f3 {[%clk 0:01:51]}  Re6 {[%clk 0:00:46]} 24. Kf2 {[%clk 0:01:51]}  h5 {[%clk 0:00:43]} 25. h4 {[%clk 0:01:51]}  gxh4 {[%clk 0:00:41]} 26. Rh1 {[%clk 0:01:50]}  Rg6 {[%clk 0:00:33]} 27. Rxh4 {[%clk 0:01:49]}  Rdg8 {[%clk 0:00:34]} 28. Rh2 {[%clk 0:01:46]}  h4 {[%clk 0:00:33]} 29. Kg1 {[%clk 0:01:42]}  Rh6 {[%clk 0:00:30]} 30. Be5 {[%clk 0:01:32]}  h3 {[%clk 0:00:28]} 31. Bf4 {[%clk 0:01:29]}  Rhh8 {[%clk 0:00:20]} 32. Be5 {[%clk 0:00:53]}  Rh5 {[%clk 0:00:17]} 33. Rf2 {[%clk 0:00:47]}  Ke6 {[%clk 0:00:16]} 34. Bf4 {[%clk 0:00:45]}  Rhh8 {[%clk 0:00:12]} 35. g3 {[%clk 0:00:45]}  Rc8 {[%clk 0:00:08]} 36. Rf1 {[%clk 0:00:42]}  Bb5 {[%clk 0:00:08]} 37. Rd1 {[%clk 0:00:41]}  Bc4 {[%clk 0:00:06]} 38. b3 {[%clk 0:00:41]}  Bb5 {[%clk 0:00:05]} 39. Rhd2 {[%clk 0:00:41]}  Bc6 {[%clk 0:00:04]} 40. Kh2 {[%clk 0:00:39]}  d4 {[%clk 0:00:03]} 41. Rf2 {[%clk 0:00:17]}  dxe3 {[%clk 0:00:04]} 42. Re1 {[%clk 0:00:17]}  Kf7 {[%clk 0:00:03]} 43. Rxe3 {[%clk 0:00:17]}  Bb5 {[%clk 0:00:03]} 44. a4 {[%clk 0:00:16]}  Bc6 {[%clk 0:00:03]} 45. g4 {[%clk 0:00:16]}  fxg4 {[%clk 0:00:03]} 46. fxg4 {[%clk 0:00:16]}  Kg6 {[%clk 0:00:03]} 47. Be5 {[%clk 0:00:16]}  Rhf8 {[%clk 0:00:03]} 48. Rxf8 {[%clk 0:00:14]}  Rxf8 {[%clk 0:00:04]} 49. Rxh3 {[%clk 0:00:14]}  Rf2+ {[%clk 0:00:04]} 50. Kg1 {[%clk 0:00:14]}  Rg2+ {[%clk 0:00:04]} 51. Kf1 {[%clk 0:00:14]}  Rxg4 {[%clk 0:00:05]} 52. Re3 {[%clk 0:00:12]}  Bd5 {[%clk 0:00:03]} 53. Ke2 {[%clk 0:00:12]}  Re4 {[%clk 0:00:04]} 54. Rxe4 {[%clk 0:00:12]}  Bxe4 {[%clk 0:00:05]} 55. Ke3 {[%clk 0:00:12]}  Bc2 {[%clk 0:00:05]} 56. a5 {[%clk 0:00:11]}  Bxb3 {[%clk 0:00:06]} 57. Kd4 {[%clk 0:00:12]}  Ba4 {[%clk 0:00:06]} 58. Bc7 {[%clk 0:00:12]}  Bc6 {[%clk 0:00:07]} 59. Kc5 {[%clk 0:00:12]}  Kf7 {[%clk 0:00:08]} 60. Kb6 {[%clk 0:00:13]}  Kg6 {[%clk 0:00:09]} 61. Bg3 {[%clk 0:00:13]}  Kf7 {[%clk 0:00:10]} 62. Bh2 {[%clk 0:00:14]}  Kg6 {[%clk 0:00:10]} 63. Bg3 {[%clk 0:00:14]}  Kf7 {[%clk 0:00:11]} 64. Bh2 {[%clk 0:00:15]}  Kg6 {[%clk 0:00:11]} 1/2-1/2


[Site "https://www.chess.com"]

[Event "Titled Tuesday Blitz November 01 Late 2022"]
[White "Jimenez Almeida, Luis David"]
[Black "Sanal, Vahap"]
[WhiteFideId "22242244"]
[BlackFideId "6300545"]
[WhiteElo "2158"]
[BlackElo "2574"]
[Result "0-1"]
[Round "01"]
[TimeControl "180+1"]
[Date "2022.11.01"]
[WhiteClock "0:00:31"]
[BlackClock "0:00:56"]

1. Nf3 {[%clk 0:02:54]}  d6 {[%clk 0:02:59]} 2. d4 {[%clk 0:02:52]}  Nf6 {[%clk 0:03:00]} 3. c4 {[%clk 0:02:51]}  g6 {[%clk 0:02:59]} 4. Nc3 {[%clk 0:02:51]}  Bg7 {[%clk 0:02:59]} 5. e4 {[%clk 0:02:51]}  O-O {[%clk 0:02:59]} 6. Be2 {[%clk 0:02:51]}  Nbd7 {[%clk 0:02:51]} 7. O-O {[%clk 0:02:49]}  e5 {[%clk 0:02:52]} 8. d5 {[%clk 0:02:49]}  Nc5 {[%clk 0:02:51]} 9. Qc2 {[%clk 0:02:49]}  a5 {[%clk 0:02:51]} 10. Bg5 {[%clk 0:02:36]}  h6 {[%clk 0:02:51]} 11. Be3 {[%clk 0:02:35]}  Ng4 {[%clk 0:02:49]} 12. Bd2 {[%clk 0:02:34]}  f5 {[%clk 0:02:44]} 13. h3 {[%clk 0:02:05]}  Nf6 {[%clk 0:02:39]} 14. exf5 {[%clk 0:01:57]}  gxf5 {[%clk 0:02:28]} 15. Rfe1 {[%clk 0:01:53]}  Bd7 {[%clk 0:02:23]} 16. b3 {[%clk 0:01:51]}  Rf7 {[%clk 0:02:11]} 17. a3 {[%clk 0:01:50]}  Nce4 {[%clk 0:01:59]} 18. b4 {[%clk 0:01:43]}  Nxc3 {[%clk 0:01:54]} 19. Bxc3 {[%clk 0:01:42]}  Ne4 {[%clk 0:01:55]} 20. Bb2 {[%clk 0:01:37]}  a4 {[%clk 0:01:51]} 21. Bd3 {[%clk 0:01:34]}  Ng5 {[%clk 0:01:50]} 22. Nxg5 {[%clk 0:01:33]}  Qxg5 {[%clk 0:01:45]} 23. Bf1 {[%clk 0:01:30]}  f4 {[%clk 0:01:41]} 24. Kh2 {[%clk 0:01:30]}  Bf6 {[%clk 0:01:37]} 25. Bd3 {[%clk 0:01:24]}  Rg7 {[%clk 0:01:35]} 26. Be4 {[%clk 0:01:23]}  Rf8 {[%clk 0:01:28]} 27. Rg1 {[%clk 0:01:22]}  Qh4 {[%clk 0:01:21]} 28. c5 {[%clk 0:01:09]}  Kh8 {[%clk 0:01:13]} 29. cxd6 {[%clk 0:01:05]}  cxd6 {[%clk 0:01:14]} 30. Qe2 {[%clk 0:00:45]}  Rfg8 {[%clk 0:01:08]} 31. Rac1 {[%clk 0:00:34]}  Bd8 {[%clk 0:01:00]} 32. Rc2 {[%clk 0:00:31]}  Bxh3 {[%clk 0:00:56]} 0-1


[Site "https://www.chess.com"]